fUSD/lending_fUSD_20240215
["ID","MTS","AMOUNT","RATE_DAILY","PERIOD"]
[314116844,1707996637512,-500.0,0.00040273,7]
[314116845,1707996637521,-159.69045391,0.00040275,30]
[314116846,1707996637531,-151.021518,0.00040348,19]
[314116847,1707996637540,-151.021518,0.00040348,19]
[314116848,1707996637550,-151.021518,0.00040348,19]
[314116849,1707996637559,-151.021518,0.00040348,19]
[314116850,1707996637569,-151.021518,0.00040348,19]
[314116851,1707996637578,-5188.31776776,0.00040353,10]
[314116852,1707996637587,-8567.24851524,0.00040363,2]
[314116853,1707996637757,-4341.31801307,0.00040363,2]
[314116854,1707996637768,-7161.25839567,0.00040363,2]
[314116855,1707996637781,-159.21,0.00040373,2]
[314116856,1707996637791,-1729.43925592,0.00040393,10]
[314116857,1707996637800,-1729.43925592,0.00040394,10]
[314116858,1707996637810,-500.0,0.00040403,7]
[314116859,1707996637820,-898.28,0.00040403,7]
[314116860,1707996637831,-500.0,0.00040403,7]
[314116861,1707996637840,-523.38,0.00040403,7]
[314116862,1707996637849,-500.0,0.00040403,7]
[314116863,1707996637858,-500.0,0.00040403,7]
[314116864,1707996637869,-500.0,0.00040403,7]
[314116865,1707996637878,-500.0,0.00040403,7]
[314116866,1707996637887,-217.87,0.00040403,7]
[314116867,1707996637896,-457.47,0.00040403,7]
[314116868,1707996637907,-500.0,0.00040403,7]
[314116869,1707996637917,-500.0,0.00040403,7]
[314116870,1707996637926,-500.0,0.00040403,7]
[314116871,1707996637935,-523.32,0.00040403,7]
[314116872,1707996637944,-500.0,0.00040403,7]
[314116873,1707996637953,-662.96,0.00040403,7]
[314116874,1707996637962,-500.0,0.00040403,7]
[314116875,1707996637971,-641.89,0.00040403,7]
[314116876,1707996637980,-202.08,0.00040403,7]
[314116877,1707996637989,-500.0,0.00040403,7]
[314116878,1707996637999,-607.9,0.00040403,7]
[314116879,1707996638009,-500.0,0.00040403,7]
[314116880,1707996638018,-500.0,0.00040403,7]
[314116881,1707996638027,-500.0,0.00040403,7]
[314116882,1707996638036,-297.14,0.00040403,7]
[314116883,1707996638045,-322.66260193,0.00040403,7]
[314116884,1707996638054,-500.0,0.00040403,7]
[314116885,1707996638063,-500.0,0.00040403,7]
[314116886,1707996638072,-583.97,0.00040403,7]
[314116887,1707996638082,-500.0,0.00040404,7]
[314116888,1707996638091,-500.0,0.00040404,7]
[314116889,1707996638100,-574.02,0.00040404,7]
[314116890,1707996638109,-500.0,0.00040404,7]
[314116891,1707996638122,-500.0,0.00040404,7]
[314116892,1707996638131,-266.63,0.00040404,7]
[314116893,1707996638140,-500.0,0.00040404,7]
[314116894,1707996638149,-500.0,0.00040404,7]
[314116895,1707996638159,-500.0,0.00040404,7]
[314116896,1707996638168,-500.0,0.00040404,7]
[314116897,1707996638178,-500.0,0.00040404,7]
[314116898,1707996638187,-3854.04,0.00040404,7]
[314116899,1707996638196,-500.0,0.00040404,7]
[314116900,1707996638205,-1729.43925592,0.00040435,10]
[314116901,1707996638215,-1729.43925592,0.00040435,10]
[314116902,1707996638223,-3736.36226113,0.00040445,14]
[314116903,1707996638234,-151.021518,0.00040448,20]
[314116904,1707996638243,-151.021518,0.00040448,20]
[314116905,1707996638253,-151.021518,0.00040448,20]
[314116907,1707996638263,-170.84824694,0.00040537,2]
[314116909,1707996638272,-759.01,0.00040547,7]
[314116911,1707996638281,-500.0,0.00040547,7]
[314116913,1707996638290,-500.0,0.00040547,7]
[314116915,1707996638299,-521.07047785,0.00040547,7]
[314116917,1707996638308,-403.49,0.00040547,7]
[314116919,1707996638317,-297.65,0.00040547,7]
[314116921,1707996638326,-500.0,0.00040547,7]
[314116923,1707996638335,-202.87545983,0.00040547,7]
[314116925,1707996638344,-225.91,0.00040547,7]
[314116927,1707996638352,-230.57,0.00040547,7]
[314116928,1707996638362,-620.47,0.00040547,7]
[314116929,1707996638370,-250.02,0.00040547,7]
[314116930,1707996638379,-344.03,0.00040547,7]
[314116931,1707996638389,-528.03,0.00040547,7]
[314116932,1707996638398,-500.0,0.00040547,7]
[314116933,1707996638407,-352.57503842,0.00040547,7]
[314116934,1707996638417,-367.49,0.00040547,7]
[314116935,1707996638427,-500.0,0.00040547,7]
[314116936,1707996638436,-246.04,0.00040547,7]
[314116937,1707996638446,-500.0,0.00040547,7]
[314116938,1707996638455,-151.021518,0.00040548,20]
[314116939,1707996638465,-151.021518,0.00040548,20]
[314116940,1707996638474,-151.021518,0.00040548,21]
[314116941,1707996638485,-151.021518,0.00040548,21]
[314116942,1707996638495,-154.86854079,0.00040662,30]
[314116943,1707996638505,-395.05,0.00040677,7]
[314116944,1707996638514,-898.28,0.00040677,7]
[314116945,1707996638524,-364.09,0.00040677,7]
[314116946,1707996638534,-523.38,0.00040677,7]
[314116947,1707996638543,-500.0,0.00040677,7]
[314116948,1707996638553,-500.0,0.00040677,7]
[314116949,1707996638562,-500.0,0.00040677,7]
[314116950,1707996638572,-500.0,0.00040677,7]
[314116951,1707996638581,-176.41507877,0.00040677,7]
[314116952,1707996638590,-216.69739386,0.00040677,7]
[314116953,1707996638600,-484.98,0.00040677,7]
[314116954,1707996638609,-523.32,0.00040677,7]
[314116955,1707996638619,-500.0,0.00040677,7]
[314116956,1707996638761,-662.96,0.00040677,7]
[314116957,1707996638770,-500.0,0.00040677,7]
[314116958,1707996638784,-500.0,0.00040677,7]
[314116959,1707996638792,-443.05,0.00040677,7]
[314116960,1707996638802,-511.48,0.00040677,7]
[314116961,1707996638811,-628.57,0.00040677,7]
[314116962,1707996638822,-500.0,0.00040677,7]
[314116963,1707996638831,-168.95,0.00040677,7]
[314116964,1707996638840,-507.93684786,0.00040678,7]
[314116965,1707996638850,-500.0,0.00040678,7]
[314116966,1707996638860,-326.5,0.00040678,7]
[314116967,1707996638870,-500.0,0.00040678,7]
[314116968,1707996638879,-500.0,0.00040678,7]
[314116969,1707996638889,-175.75,0.00040678,7]
[314116970,1707996638898,-556.11,0.00040678,7]
[314116971,1707996638908,-338.33,0.00040678,7]
[314116972,1707996638920,-500.0,0.00040678,7]
[314116973,1707996638929,-3854.04,0.00040678,7]
[314116974,1707996638939,-500.0,0.00040678,7]
[314116975,1707996638948,-175.91156418,0.00040685,10]
[314116976,1707996638958,-612.30960758,0.0004071,2]
[314116977,1707996638967,-328.5408751,0.0004071,2]
[314116978,1707996638977,-189.70263293,0.0004071,16]
[314116979,1707996638986,-3736.36226113,0.00040718,14]
[314116980,1707996638996,-151.021518,0.00040748,21]
[314116981,1707996639006,-151.021518,0.00040748,21]
[314116982,1707996639015,-151.021518,0.00040748,21]
[314116983,1707996639025,-151.021518,0.00040748,21]
[314116984,1707996639034,-151.021518,0.00040748,21]
[314116985,1707996639043,-151.021518,0.00040748,20]
[314116986,1707996639053,-151.021518,0.00040748,20]
[314116987,1707996639063,-151.021518,0.00040748,20]
[314116988,1707996639073,-151.021518,0.00040748,20]
[314116989,1707996639083,-156.52167481,0.00040757,2]
[314116990,1707996639092,-697.75978824,0.00040757,2]
[314116991,1707996639102,-446.24475212,0.00040757,2]
[314116992,1707996639111,-504.0,0.0004079,2]
[314116993,1707996639120,-783.2047,0.00040799,2]
[314116994,1707996639129,-2965.2098,0.00040799,2]
[314116995,1707996639139,-500.0,0.00040799,2]
[314116996,1707996639148,-1011.0,0.000408,7]
[314116997,1707996639160,-1000.0,0.000408,4]
[314116998,1707996639170,-207359.1303892,0.000408,2]
[314116999,1707996639180,-83089.3071146,0.0004081,6]
[314117000,1707996639190,-500.0,0.0004082,7]
[314117001,1707996639199,-516.47329608,0.0004082,7]
[314117002,1707996639209,-500.0,0.0004082,7]
[314117003,1707996639219,-500.0,0.0004082,7]
[314117004,1707996639230,-610.3,0.0004082,7]
[314117005,1707996639240,-513.00442314,0.0004082,7]
[314117006,1707996639250,-500.0,0.0004082,7]
[314117007,1707996639259,-500.0,0.0004082,7]
[314117008,1707996639269,-500.0,0.0004082,7]
[314117009,1707996639279,-500.0,0.0004082,7]
[314117010,1707996639288,-500.0,0.0004082,7]
[314117011,1707996639298,-500.0,0.0004082,7]
[314117012,1707996639307,-500.0,0.0004082,7]
[314117013,1707996639317,-500.0,0.0004082,7]
[314117014,1707996639326,-500.0,0.0004082,7]
[314117015,1707996639336,-500.0,0.0004082,7]
[314117016,1707996639346,-500.0,0.0004082,7]
[314117017,1707996639355,-500.0,0.0004082,7]
[314117018,1707996639366,-517.23,0.0004082,7]
[314117019,1707996639375,-500.0,0.0004082,7]
[314117020,1707996639385,-392.09900761,0.0004082,7]
[314117021,1707996639395,-500.0,0.0004082,7]
[314117022,1707996639404,-500.0,0.0004082,7]
[314117023,1707996639414,-525.66,0.0004082,7]
[314117024,1707996639423,-572.56,0.0004082,7]
[314117025,1707996639432,-500.0,0.0004082,7]
[314117026,1707996639442,-500.0,0.0004082,7]
[314117027,1707996639451,-532.33721536,0.0004082,7]
[314117028,1707996639461,-553.65,0.0004082,7]
[314117029,1707996639470,-500.0,0.0004082,7]
[314117030,1707996639481,-500.0,0.0004082,7]
[314117031,1707996639490,-350.44385702,0.0004082,7]
[314117032,1707996639499,-500.0,0.0004082,7]
[314117033,1707996639509,-500.0,0.0004082,7]
[314117034,1707996639518,-170.80613312,0.0004082,7]
[314117035,1707996639527,-500.0,0.0004082,7]
[314117036,1707996639536,-573.12406925,0.0004082,7]
[314117037,1707996639546,-214.5389069,0.0004082,7]
[314117038,1707996639555,-500.0,0.0004082,7]
[314117039,1707996639565,-500.0,0.0004082,7]
[314117040,1707996639575,-500.0,0.0004082,7]
[314117041,1707996639585,-539.94177101,0.0004082,7]
[314117042,1707996639595,-531.93429366,0.0004082,7]
[314117043,1707996639605,-547.25845942,0.0004082,7]
[314117045,1707996639614,-500.0,0.0004082,7]
[314117046,1707996639622,-529.47175707,0.0004082,7]
[314117047,1707996639632,-449.50435322,0.0004082,7]
[314117048,1707996639641,-500.0,0.0004082,7]
[314117049,1707996639650,-508.99320083,0.0004082,7]
[314117050,1707996639659,-500.0,0.0004082,7]
[314117052,1707996639668,-511.15686662,0.0004082,7]
[314117054,1707996639678,-514.1186548,0.0004082,7]
[314117055,1707996639687,-500.0,0.0004082,7]
[314117057,1707996639696,-266.26640994,0.0004082,7]
[314117059,1707996639706,-519.45763063,0.0004082,7]
[314117061,1707996639715,-514.19286626,0.0004082,7]
[314117063,1707996639724,-516.78000685,0.0004082,7]
[314117065,1707996639734,-285.45441145,0.0004082,7]
[314117067,1707996639743,-528.11375289,0.0004082,7]
[314117069,1707996639753,-500.0,0.0004082,7]
[314117071,1707996639762,-521.57248437,0.0004082,7]
[314117073,1707996639771,-500.0,0.0004082,7]
[314117075,1707996639783,-500.0,0.0004082,7]
[314117077,1707996639792,-512.2726976,0.0004082,7]
[314117079,1707996639801,-609.86,0.0004082,7]
[314117081,1707996639810,-500.0,0.0004082,7]
[314117082,1707996639821,-590.73,0.0004082,7]
[314117083,1707996639832,-500.0,0.0004082,7]
[314117084,1707996639841,-500.0,0.0004082,7]
[314117085,1707996639850,-640.14,0.0004082,7]
[314117086,1707996639859,-263.31169319,0.0004082,7]
[314117087,1707996639869,-500.0,0.0004082,7]
[314117088,1707996639878,-500.0,0.0004082,7]
[314117089,1707996639886,-500.0,0.0004082,7]
[314117090,1707996639895,-545.48,0.0004082,7]
[314117091,1707996639905,-500.0,0.0004082,7]
[314117092,1707996639915,-500.0,0.0004082,7]
[314117093,1707996639925,-500.0,0.0004082,7]
[314117094,1707996639934,-500.0,0.0004082,7]
[314117095,1707996639943,-500.0,0.0004082,7]
[314117096,1707996639952,-550.0,0.0004082,7]
[314117097,1707996639962,-500.0,0.0004082,7]
[314117098,1707996639972,-238.83734387,0.0004082,7]
[314117099,1707996639983,-505.27,0.0004082,7]
[314117100,1707996639993,-500.0,0.0004082,7]
[314117101,1707996640002,-500.0,0.0004082,7]
[314117102,1707996640011,-1019.99229808,0.0004082,7]
[314117103,1707996640022,-422.03130012,0.0004082,7]
[314117104,1707996640032,-420.08,0.0004082,7]
[314117105,1707996640043,-500.0,0.0004082,7]
[314117106,1707996640053,-232.3784575,0.0004082,7]
[314117107,1707996640063,-490.98209919,0.0004082,7]
[314117108,1707996640074,-203.29481826,0.0004082,7]
[314117109,1707996640084,-500.0,0.0004082,7]
[314117110,1707996640093,-500.0,0.0004082,7]
[314117111,1707996640102,-500.0,0.0004082,7]
[314117112,1707996640112,-504.46827889,0.0004082,7]
[314117113,1707996640122,-525.55266546,0.0004082,7]
[314117114,1707996640131,-500.0,0.0004082,7]
[314117115,1707996640141,-373.29422254,0.0004082,7]
[314117116,1707996640151,-500.0,0.0004082,7]
[314117117,1707996640160,-503.72775613,0.0004082,7]
[314117118,1707996640169,-500.0,0.0004082,7]
[314117119,1707996640178,-500.0,0.0004082,7]
[314117120,1707996640188,-500.0,0.0004082,7]
[314117121,1707996640197,-500.0,0.0004082,2]
[314117122,1707996640206,-500.0,0.0004082,7]
[314117123,1707996640217,-500.0,0.0004082,7]
[314117124,1707996640226,-500.0,0.0004082,7]
[314117125,1707996640243,-500.0,0.0004082,7]
[314117126,1707996640253,-500.0,0.0004082,7]
[314117127,1707996640263,-500.0,0.0004082,7]
[314117128,1707996640272,-500.0,0.0004082,7]
[314117129,1707996640282,-500.0,0.0004082,2]
[314117130,1707996640293,-500.0,0.0004082,7]
[314117131,1707996640302,-500.0,0.0004082,7]
[314117132,1707996640313,-500.0,0.0004082,7]
[314117133,1707996640323,-500.0,0.0004082,7]
[314117134,1707996640332,-500.0,0.0004082,7]
[314117135,1707996640342,-586.85,0.0004082,7]
[314117136,1707996640352,-528.74716271,0.0004082,7]
[314117138,1707996640361,-514.9,0.0004082,7]
[314117140,1707996640371,-500.0,0.0004082,7]
[314117141,1707996640380,-439.52034672,0.0004082,7]
[314117142,1707996640390,-626.64248829,0.0004082,7]
[314117143,1707996640399,-500.0,0.0004082,7]
[314117144,1707996640410,-500.0,0.0004082,7]
[314117145,1707996640419,-500.0,0.0004082,7]
[314117146,1707996640428,-427.82369815,0.0004082,7]
[314117147,1707996640439,-522.47664279,0.0004082,7]
[314117148,1707996640449,-500.0,0.0004082,7]
[314117149,1707996640458,-514.4970776,0.0004082,7]
[314117150,1707996640468,-500.0,0.0004082,2]
[314117151,1707996640481,-519.21240409,0.0004082,7]
[314117152,1707996640491,-500.0,0.0004082,7]
[314117153,1707996640500,-500.0,0.0004082,7]
[314117154,1707996640511,-500.0,0.0004082,7]
[314117155,1707996640520,-759.01,0.00040821,7]
[314117156,1707996640530,-500.0,0.00040821,7]
[314117157,1707996640540,-157.14,0.00040821,7]
[314117158,1707996640549,-500.0,0.00040821,7]
[314117159,1707996640559,-528.03,0.00040821,7]
[314117160,1707996640568,-392.58,0.00040821,7]
[314117161,1707996640579,-500.0,0.00040821,7]
[314117162,1707996640590,-500.0,0.00040821,7]
[314117163,1707996640599,-150.0,0.00040835,2]
[314117164,1707996640608,-53293.8159067,0.00040847,5]
[314117165,1707996640625,-154548.65678341,0.00040847,5]
[314117166,1707996640638,-405.73217389,0.00040847,5]
[314117167,1707996640650,-2982.54603468,0.00040847,5]
[314117168,1707996640669,-500.0,0.00039855,7]
[314117169,1707996640678,-12.82003564,0.00040847,5]
[314117170,1707996640689,-431.18512968,0.00040847,5]
[314117171,1707996640701,-346.42109149,0.00040847,5]
[314117172,1707996641077,-207.0,0.00037999,2]
[314117173,1707996641087,-196.93718871,0.00038941,2]
[314117174,1707996641098,-60.33324198,0.00038941,2]
[314117175,1707996641107,-250.0,0.00039101,111]
[314117176,1707996641116,-191.91293503,0.00039255,2]
[314117177,1707996641125,-500.0,0.00039725,7]
[314117178,1707996641135,-500.0,0.00039854,7]
[314117179,1707996641144,-500.0,0.00039854,7]
[314117180,1707996641153,-500.0,0.00039854,7]
[314117181,1707996641162,-500.0,0.00039855,7]
[314117182,1707996641172,-207.0,0.00040199,10]
[314117183,1707996641183,-4044.85678979,0.00040847,5]
[314117184,1707996641208,-395.98482754,0.00040847,5]
[314117185,1707996641220,-296.43501175,0.00040847,5]
[314117186,1707996641241,-24867.87669527,0.00040847,5]
[314117187,1707996641252,-541.90799385,0.00040847,5]
[314117188,1707996641264,-1624.19106183,0.00040847,5]
[314117189,1707996641276,-69228.27888612,0.00040847,5]
[314117190,1707996641358,-1531.14617822,0.00040847,5]
[314117191,1707996641370,-1839.28732032,0.00040847,5]
[314117192,1707996641384,-1572.90815554,0.00040847,5]
[314117193,1707996641396,-17393.10392899,0.00040847,5]
[314117194,1707996641407,-7059.51163285,0.00040847,5]
[314117195,1707996641418,-1245.70852761,0.00040847,5]
[314117196,1707996641431,-1159.81592435,0.00040847,5]
[314117197,1707996641442,-354.33584849,0.00040847,5]
[314117199,1707996641457,-7463.19073058,0.00040847,5]
[314117200,1707996641469,-5250.0,0.00040847,5]
[314117201,1707996641481,-430.72640198,0.00040847,5]
[314117202,1707996641497,-1007.43044093,0.00040847,5]
[314117203,1707996641508,-2721.82737898,0.00040847,5]
[314117204,1707996641519,-2986.75034753,0.00040847,5]
[314117205,1707996641694,-257.27043069,0.00039649,2]
[314117206,1707996641703,-166082.91490942,0.00040847,5]
[314117207,1707996641715,-420.0,0.00040847,5]
[314117208,1707996641726,-1906.36553316,0.00040847,5]
[314117211,1707996642833,-500.0,0.00039471,7]
[314117212,1707996642843,-736.31169008,0.00040847,5]
[314117213,1707996642947,-324.88674443,0.00040847,5]
[314117214,1707996643062,-346719.60962203,0.00040847,5]
[314117215,1707996643072,-170.84824694,0.00040847,2]
[314117216,1707996643083,-83089.3071146,0.00040847,6]
[314117217,1707996643093,-83089.3071146,0.00040847,6]
[314117218,1707996643103,-130611.6,0.00040857,2]
[314117219,1707996643113,-159636.4,0.00040857,2]
[314117220,1707996643123,-150.0,0.00040864,2]
[314117221,1707996643133,-415446.535573,0.00040868,6]
[314117222,1707996643143,-20069.82492398,0.00040868,3]
[314117223,1707996643153,-2288.80297242,0.00040878,2]
[314117224,1707996643162,-159.53892364,0.00040884,30]
[314117225,1707996643171,-218.63138029,0.00040889,2]
[314117227,1707996643181,-170.84824694,0.00040889,2]
[314117228,1707996643191,-187.92657168,0.00040898,2]
[314117229,1707996643200,-182530.97113137,0.00040899,2]
[314117230,1707996643212,-57889.63046562,0.00040899,2]
[314117231,1707996643228,-675.10757518,0.00040899,2]
[314117232,1707996643250,-3904.29082783,0.00040899,2]
[314117234,1707996643260,-7860.11905309,0.00040899,2]
[314117236,1707996643273,-11437.69264691,0.00040899,2]
[314117238,1707996643283,-1563.28001358,0.00040899,2]
[314117240,1707996643295,-2309.9562726,0.00040899,2]
[314117274,1707996646123,-500.0,0.00039471,7]
[314117275,1707996646132,-9987.934,0.00039625,7]
[314117276,1707996646217,-13071.7718,0.00039625,7]
[314117310,1707997835647,-274.0977,0.000327,120]
[314117311,1707997835657,-161.15943826,0.000329,2]
[314117312,1707997835666,-161.15943826,0.000329,2]
[314117313,1707997835676,-332.017282,0.000329,2]
[314117315,1707997835704,-1566.98708128,0.000329,2]
[314117316,1707997835764,-6100.99563672,0.000329,2]
[314117317,1707997835774,-274.5143859,0.00033,4]
[314117318,1707997835783,-159.72869695,0.00033309,2]
[314117319,1707997835793,-159.72869695,0.00033817,2]
[314117320,1707997835803,-2519.53408285,0.00033891,10]
[314117321,1707997835815,-5539.83094535,0.00033891,10]
[314117322,1707997835825,-20083.10818442,0.00033891,10]
[314117323,1707997835835,-8361.48940355,0.00033891,10]
[314117324,1707997835846,-4141.0,0.000342,2]
[314117325,1707997835856,-159.72869695,0.00034326,2]
[314117326,1707997835866,-499.99,0.00034326,2]
[314117327,1707997835876,-673.99,0.00034514,2]
[314117328,1707997835887,-159.72869695,0.00034834,2]
[314117329,1707997835897,-3242.43,0.00034834,2]
[314117330,1707997835906,-150.1,0.00034908,2]
[314117331,1707997835917,-515.28,0.00034908,2]
[314117332,1707997835926,-206.0,0.00034999,2]
[314117333,1707997835937,-159.72869695,0.00035343,2]
[314117334,1707997835947,-1000.0,0.00035349,2]
[314117335,1707997835956,-4141.34317024,0.000356,2]
[314117336,1707997835966,-159.72869695,0.00035851,2]
[314117337,1707997835975,-225.0,0.00036163,4]
[314117338,1707997835985,-284.50081931,0.00036163,4]
[314117339,1707997835994,-299.53748083,0.00036163,4]
[314117340,1707997836004,-159.72869695,0.0003636,2]
[314117341,1707997836014,-337.6,0.00036384,2]
[314117342,1707997836023,-648.55,0.00036389,2]
[314117343,1707997836033,-3587.21,0.00036479,2]
[314117344,1707997836043,-161.74,0.00036508,2]
[314117345,1707997836053,-287.99,0.00036537,3]
[314117346,1707997836067,-250.0,0.00036537,2]
[314117347,1707997836077,-155.42,0.00036537,2]
[314117348,1707997836087,-150.0,0.00036578,2]
[314117350,1707997836099,-250.0,0.00036603,111]
[314117351,1707997836112,-250.0,0.00036615,2]
[314117352,1707997836121,-157.76,0.000367,2]
[314117353,1707997836130,-673.99,0.00036778,2]
[314117354,1707997836141,-281.21,0.00036805,2]
[314117355,1707997836152,-159.72869695,0.00036868,2]
[314117356,1707997836162,-999.99,0.00036895,2]
[314117357,1707997836171,-2549.150259,0.00036986,2]
[314117358,1707997836181,-795.2,0.00036986,2]
[314117359,1707997836192,-5501.56,0.0003702,2]
[314117360,1707997836203,-23900.0,0.00037219,2]
[314117361,1707997836212,-2000.0,0.00037249,2]
[314117362,1707997836222,-188.21,0.00037319,2]
[314117363,1707997836232,-996.9,0.00037375,2]
[314117364,1707997836241,-159.72869695,0.00037377,2]
[314117365,1707997836251,-965.034,0.00037381,2]
[314117366,1707997836260,-607.74,0.00037423,2]
[314117367,1707997836270,-1000.0,0.00037606,2]
[314117368,1707997836280,-607.74,0.0003762,2]
[314117369,1707997836289,-157.76,0.00037656,2]
[314117370,1707997836298,-154.55,0.000377,3]
[314117371,1707997836312,-311.4,0.000377,3]
[314117372,1707997836321,-311.4,0.000377,3]
[314117373,1707997836331,-311.4,0.000377,3]
[314117374,1707997836339,-311.4,0.000377,3]
[314117375,1707997836491,-311.4,0.000377,3]
[314117376,1707997836502,-311.4,0.000377,3]
[314117377,1707997836512,-311.4,0.000377,3]
[314117378,1707997836522,-311.4,0.000377,3]
[314117379,1707997836531,-311.4,0.000377,3]
[314117380,1707997836541,-311.4,0.000377,3]
[314117381,1707997836551,-311.4,0.000377,3]
[314117382,1707997836561,-311.4,0.000377,3]
[314117383,1707997836571,-311.4,0.000377,3]
[314117384,1707997836580,-311.4,0.000377,3]
[314117385,1707997836590,-311.4,0.000377,3]
[314117386,1707997836599,-311.4,0.000377,3]
[314117387,1707997836608,-311.4,0.000377,3]
[314117388,1707997836618,-311.4,0.000377,3]
[314117389,1707997836627,-311.4,0.000377,3]
[314117390,1707997836637,-311.4,0.000377,3]
[314117391,1707997836646,-206.0,0.00037777,8]
[314117392,1707997836656,-3823.725388,0.00037808,2]
[314117393,1707997836666,-607.74,0.00037817,2]
[314117394,1707997836675,-159.72869695,0.00037885,2]
[314117395,1707997836684,-409.54,0.00038,2]
[314117396,1707997836693,-11381.0,0.00038,3]
[314117397,1707997836703,-10000.0,0.00038,30]
[314117398,1707997836712,-607.74,0.00038014,2]
[314117399,1707997836722,-648.55,0.00038033,2]
[314117400,1707997836731,-607.74,0.00038211,2]
[314117401,1707997836740,-161.74,0.00038333,2]
[314117402,1707997836750,-5098.300518,0.00038356,2]
[314117403,1707997836758,-150.0,0.00038356,2]
[314117404,1707997836768,-3475.49,0.00038356,15]
[314117405,1707997836777,-155.42,0.00038364,2]
[314117406,1707997836786,-5501.56,0.0003839,2]
[314117407,1707997836795,-159.72869695,0.00038394,2]
[314117408,1707997836804,-607.74,0.00038408,2]
[314117409,1707997836814,-164.58,0.00038499,2]
[314117410,1707997836824,-1500.0,0.000385,27]
[314117411,1707997836833,-10000.0,0.000386,21]
[314117412,1707997836842,-607.74,0.00038605,2]
[314117413,1707997836851,-157.76,0.00038612,2]
[314117414,1707997836860,-493.86684771,0.000387,2]
[314117415,1707997836870,-214.8602,0.000387,2]
[314117416,1707997836879,-151.021518,0.00038748,18]
[314117417,1707997836888,-154.55,0.000388,3]
[314117418,1707997836897,-154.55,0.000388,3]
[314117419,1707997836908,-311.4,0.000388,3]
[314117420,1707997836918,-311.4,0.000388,3]
[314117421,1707997836928,-311.4,0.000388,3]
[314117422,1707997836937,-311.4,0.000388,3]
[314117423,1707997836946,-311.4,0.000388,3]
[314117424,1707997836955,-311.4,0.000388,3]
[314117425,1707997836964,-311.4,0.000388,3]
[314117426,1707997836974,-311.4,0.000388,3]
[314117427,1707997836983,-311.4,0.000388,3]
[314117428,1707997836992,-311.4,0.000388,3]
[314117429,1707997837002,-311.4,0.000388,3]
[314117430,1707997837011,-311.4,0.000388,3]
[314117431,1707997837021,-311.4,0.000388,3]
[314117432,1707997837030,-311.4,0.000388,3]
[314117433,1707997837039,-311.4,0.000388,3]
[314117434,1707997837049,-311.4,0.000388,3]
[314117435,1707997837058,-311.4,0.000388,3]
[314117436,1707997837068,-311.4,0.000388,3]
[314117437,1707997837079,-311.4,0.000388,3]
[314117438,1707997837090,-311.4,0.000388,3]
[314117439,1707997837103,-607.74,0.00038802,2]
[314117440,1707997837113,-159.72869695,0.00038902,2]
[314117441,1707997837123,-205.0,0.0003891,2]
[314117442,1707997837131,-1009.4622274,0.00038919,2]
[314117443,1707997837140,-1000.0,0.00038919,60]
[314117444,1707997837150,-83116.72009371,0.00038919,2]
[314117445,1707997837159,-1751.579423,0.00038919,30]
[314117446,1707997837168,-150.0,0.00038919,30]
[314117447,1707997837179,-607.74,0.00038999,2]
[314117448,1707997837188,-673.99,0.00039042,2]